bitfinex-derivatives/quotes_SOLF0:USTF0_20240906
["timestamp","ask_amount","ask_price","bid_price","bid_amount"]
[1725620400717,0.04984351,130.56,130.54,11.77]
[1725620401018,3.88024351,130.56,130.54,11.77]
[1725620401316,0.04984351,130.56,130.54,11.77]
[1725620401519,3.8305,130.55,130.54,11.77]
[1725620402410,3.88014351,130.56,130.54,11.77]
[1725620402607,0.04984351,130.56,130.55,11.77]
[1725620403515,0.04984351,130.56,130.55,15.6005]
[1725620403716,11.77,130.63,130.58,11.77]
[1725620403906,3.8292,130.6,130.58,11.77]
[1725620404114,2.7198,130.65,130.59,11.77]
[1725620404307,0.28165572,130.64,130.61,11.77]
[1725620404615,3.8281,130.64,130.61,11.82469852]
[1725620405108,3.87986269,130.64,130.61,11.82469852]
[1725620405307,0.05176269,130.64,130.62,15.5984]
[1725620405513,0.05176269,130.64,130.61,1.39179852]
[1725620405712,0.05176269,130.64,130.61,16.99039852]
[1725620406814,0.05176269,130.64,130.63,11.77]
[1725620407722,0.28157704,130.69,130.63,11.77]
[1725620407919,3.84220834,130.7,130.67,11.77]
[1725620408226,3.8266,130.69,130.67,11.77]
[1725620408808,3.8266,130.69,130.67,11.82800488]
[1725620410018,3.8266,130.69,130.67,0.05800488]
[1725620410417,3.8267,130.68,130.67,0.05800488]
[1725620417013,29.6715899,130.68,130.61,1.3371]
[1725620417312,29.39,130.66,130.61,1.3371]
[1725620417510,3.8281,130.64,130.61,1.3371]
[1725620417916,29.39,130.66,130.61,1.3371]
[1725620418112,0.28160671,130.65,130.61,1.39190737]
[1725620418815,3.88504218,130.64,130.61,1.39190737]
[1725620419019,0.28160671,130.63,130.61,1.39190737]
[1725620419924,4.10980671,130.63,130.61,1.39190737]
[1725620420126,0.05694218,130.64,130.61,1.39190737]
[1725620420320,0.05694218,130.64,130.61,0.05480737]
[1725620420520,3.8284,130.62,130.61,0.05480737]
[1725620423821,4.11001588,130.62,130.61,0.05480737]
[1725620424021,3.8284,130.62,130.61,0.05480737]
[1725620424520,4.11001615,130.62,130.61,0.05480737]
[1725620425421,0.05694218,130.64,130.61,0.05480737]
[1725620425932,3.8281,130.63,130.61,3.88330737]
[1725620426126,3.8281,130.63,130.61,0.05480737]
[1725620426431,0.05694218,130.64,130.61,0.05480737]
[1725620426629,3.8284,130.62,130.61,0.05480737]
[1725620427315,3.8294,130.59,130.55,30.7215]
[1725620427722,3.8294,130.59,130.56,3.83]
[1725620428323,3.8291,130.6,130.57,3.8299]
[1725620428525,3.8291,130.6,130.57,3.88794001]
[1725620430023,29.39,130.63,130.57,3.88794001]
[1725620430024,29.39,130.63,130.57,0.05804001]
[1725620430224,0.28165374,130.62,130.57,0.05804001]
[1725620430523,29.39,130.63,130.57,0.05804001]
[1725620430723,0.28165367,130.62,130.57,0.05804001]
[1725620431026,0.05221694,130.61,130.57,0.05804001]
[1725620431532,3.829,130.6,130.57,3.88784001]
[1725620431732,0.05221694,130.61,130.57,0.05804001]
[1725620431931,3.8291,130.6,130.57,11.82804001]
[1725620432324,0.05221694,130.61,130.57,11.82804001]
[1725620432530,3.8291,130.6,130.57,0.05804001]
[1725620432932,0.05221694,130.61,130.57,0.05804001]
[1725620433736,3.8295,130.59,130.57,0.05804001]
[1725620434929,0.05221694,130.61,130.58,11.77]
[1725620435129,0.05221694,130.61,130.57,3.88774001]
[1725620435130,0.05221694,130.61,130.6,11.77]
[1725620436031,0.05221694,130.61,130.6,29.41]
[1725620436527,3.88091694,130.61,130.6,29.41]
[1725620436733,0.05221694,130.61,130.6,29.41]
[1725620438026,0.05221694,130.61,130.6,33.239]
[1725620439635,0.05221694,130.61,130.58,3.8294]
[1725620440232,3.88111694,130.61,130.58,3.8294]
[1725620440935,0.05221694,130.61,130.57,0.05804001]
[1725620441136,0.33389104,130.61,130.57,0.05804001]
[1725620441346,29.41,130.6,130.57,0.05804001]
[1725620442432,3.8296,130.58,130.57,0.05804001]
[1725620444038,3.8294,130.59,130.57,0.05804001]
[1725620446339,3.8296,130.58,130.57,0.05804001]
[1725620449043,29.41,130.55,130.49,1.2977]
[1725620449539,3.831,130.54,130.5,3.8319]
[1725620450048,0.04990206,130.53,130.51,0.0543729]
[1725620450644,3.8314,130.52,130.51,0.0543729]
[1725620451946,7.70564745,130.52,130.51,0.0543729]
[1725620455045,3.8314,130.52,130.51,0.0543729]
[1725620455251,0.04990206,130.53,130.51,29.4643729]
[1725620457051,0.04990206,130.53,130.51,0.0543729]
[1725620458656,7.68843572,130.52,130.51,0.0543729]
[1725620459048,3.8314,130.52,130.51,0.0543729]
[1725620459251,0.04990206,130.53,130.51,0.0543729]
[1725620459747,3.84898585,130.52,130.51,0.0543729]
[1725620460246,3.88110206,130.53,130.51,0.0543729]
[1725620460450,0.04990206,130.53,130.51,0.0543729]
[1725620461441,0.04990206,130.53,130.52,3.8314]
[1725620461647,0.04990206,130.53,130.51,0.0543729]
[1725620461947,0.04990206,130.53,130.51,3.8858729]
[1725620462949,0.04990206,130.53,130.52,3.8314]
[1725620463857,0.04990206,130.53,130.51,3.8857729]
[1725620465552,0.04990206,130.53,130.52,3.8314]
[1725620466252,0.04990206,130.53,130.52,33.2414]
[1725620466454,5.22649209,130.59,130.54,3.8307]
[1725620466955,0.28172932,130.58,130.52,3.8312]
[1725620467562,3.8304,130.56,130.54,0.0561391]
[1725620468154,3.8305,130.55,130.54,0.0561391]
[1725620469957,29.45956549,130.56,130.47,30.8343]
[1725620470260,29.41,130.56,130.47,30.8343]
[1725620470561,3.8314,130.52,130.49,3.8321]
[1725620470960,3.88874623,130.52,130.49,3.8321]
[1725620471160,3.88874623,130.52,130.47,30.8343]
[1725620471661,3.88874623,130.52,130.49,3.832]
[1725620473062,0.05734623,130.52,130.47,30.8343]
[1725620473459,3.8318,130.51,130.48,3.8324]
[1725620473659,0.05734623,130.52,130.47,30.8343]
[1725620474058,0.05734623,130.52,130.47,1.4243]
[1725620474766,3.88937612,130.52,130.47,1.4243]
[1725620474959,3.8319,130.51,130.48,3.8324]
[1725620475261,3.88937612,130.52,130.47,1.4243]
[1725620476260,0.05734623,130.52,130.47,1.4243]
[1725620476652,3.8317,130.51,130.49,3.8322]
[1725620477453,3.88884623,130.52,130.49,3.8322]
[1725620477653,3.88884623,130.52,130.5,3.8319]
[1725620478663,0.05734623,130.52,130.49,29.41]
[1725620478974,29.41,130.62,130.51,29.41]
[1725620479267,3.8291,130.6,130.55,29.41]
[1725620479559,3.8291,130.6,130.53,29.41]
[1725620479560,3.8291,130.6,130.57,29.41]
[1725620479962,29.41,130.65,130.57,29.45844138]
[1725620480161,0.05799459,130.6,130.57,29.41]
[1725620480367,0.05799459,130.6,130.59,29.41]
[1725620481172,0.05799459,130.6,130.59,33.2393]
[1725620483473,0.05799459,130.6,130.59,29.41]
[1725620483665,0.05799459,130.6,130.58,1.379]
[1725620486772,0.05799459,130.6,130.58,5.2086]
[1725620487770,0.05799459,130.6,130.59,33.2393]
[1725620488076,0.05799459,130.6,130.59,29.41]
[1725620489768,0.05799459,130.6,130.58,5.2084]
[1725620489963,3.88699459,130.6,130.58,1.379]
[1725620490672,3.8294,130.59,130.57,0.05740292]
[1725620497285,3.8296,130.58,130.57,0.05740292]
[1725620506085,3.8293,130.59,130.57,0.05740292]
[1725620506483,3.8293,130.59,130.57,29.46740292]
[1725620506887,0.05799459,130.6,130.58,29.41]
[1725620507981,0.05799459,130.6,130.58,33.2394]
[1725620508377,0.05799459,130.6,130.59,3.8293]
[1725620509510,3.8279,130.64,130.58,32.1734]
[1725620509799,3.8279,130.64,130.61,29.41]
[1725620510598,3.8279,130.64,130.61,29.46417067]
[1725620511396,3.8279,130.64,130.61,33.29287067]
[1725620511598,3.8282,130.63,130.61,0.05417067]
[1725620511798,3.86867278,130.66,130.61,0.05417067]
[1725620511994,0.28158639,130.65,130.61,0.05417067]
[1725620512297,1.3816,130.69,130.63,29.41]
[1725620512497,0.05203732,130.64,130.63,29.41]
[1725620512700,0.28154468,130.67,130.65,0.0573481]
[1725620512901,0.28154468,130.67,130.64,3.8276]
[1725620513101,0.33100827,130.67,130.65,0.05126407]
[1725620513303,0.04946359,130.67,130.65,0.05126407]
[1725620513498,4.15798834,130.67,130.65,0.05126407]
[1725620513702,3.87646359,130.67,130.65,0.05126407]
[1725620514305,0.281545,130.66,130.65,0.05126407]
[1725620514506,3.87646359,130.67,130.65,0.05126407]
[1725620516904,3.87646359,130.67,130.65,29.46126407]
[1725620517409,3.87646359,130.67,130.65,33.28876407]
[1725620518111,3.87646359,130.67,130.65,29.46126407]
[1725620519011,0.04946359,130.67,130.65,33.28876407]
[1725620523008,32.1045,130.73,130.66,29.41]
[1725620523009,1.3274,130.73,130.66,29.41]
[1725620523216,0.2814829,130.72,130.68,29.41]
[1725620523408,4.1073829,130.71,130.68,33.2365]
[1725620523603,3.8259,130.71,130.68,33.2365]
[1725620524211,3.8259,130.71,130.68,33.28721153]
[1725620524404,3.8261,130.7,130.68,29.46071153]
[1725620524607,30.2312,130.75,130.68,0.05071153]
[1725620524815,0.28146412,130.74,130.68,0.05071153]
[1725620525205,3.8263,130.7,130.68,0.05071153]
[1725620525513,30.2312,130.75,130.68,0.05071153]
[1725620525715,3.8264,130.7,130.68,0.05071153]
[1725620526116,30.2312,130.75,130.68,0.05071153]
[1725620526412,0.28146412,130.74,130.68,0.05071153]
[1725620526602,1.28146412,130.74,130.68,0.05071153]
[1725620526808,0.28146412,130.73,130.68,0.05071153]
[1725620527008,3.8264,130.69,130.68,0.05071153]
[1725620527409,4.10790278,130.69,130.68,0.05071153]
[1725620529417,4.10790827,130.69,130.68,0.05071153]
[1725620533218,4.10794663,130.69,130.68,0.05071153]
[1725620534915,0.28154663,130.69,130.68,29.46071153]
[1725620535226,3.87604523,130.7,130.68,29.46071153]
[1725620536728,3.87604523,130.7,130.69,29.41]
[1725620537125,4.15750556,130.7,130.69,29.41]
[1725620537827,4.15750556,130.7,130.68,29.46071153]
[1725620538024,3.87604523,130.7,130.68,29.46071153]
[1725620540125,3.8264,130.69,130.68,29.46071153]
[1725620540924,3.8264,130.69,130.68,0.05071153]
[1725620541824,4.10791545,130.69,130.68,0.05071153]
[1725620545232,4.10792447,130.69,130.68,0.05071153]
[1725620552336,3.85429634,130.7,130.68,0.05071153]
[1725620553044,3.8264,130.69,130.68,0.05071153]
[1725620554142,3.85429634,130.7,130.68,11.82071153]
[1725620554548,0.04984523,130.7,130.68,11.82071153]
[1725620555040,3.83192986,130.69,130.68,11.82071153]
[1725620555645,3.87614523,130.7,130.68,11.82071153]
[1725620556738,3.8264,130.69,130.68,11.82071153]
[1725620557150,0.04984523,130.7,130.68,11.82071153]
[1725620557333,3.87614523,130.7,130.68,11.82071153]
[1725620558837,0.04984523,130.7,130.68,11.82071153]
[1725620559641,0.04984523,130.7,130.68,15.64711153]
[1725620560345,0.04984523,130.7,130.69,3.8264]
[1725620561138,0.04984523,130.7,130.68,15.64721153]
[1725620562446,1.0,130.74,130.68,14.60841153]
[1725620562649,1.0,130.74,130.73,11.77]
[1725620562845,1.28145003,130.74,130.72,11.77]
[1725620563047,0.28145003,130.73,130.72,11.77]
[1725620564440,4.10665003,130.73,130.72,11.77]
[1725620565153,4.10665074,130.73,130.72,11.77]
[1725620565847,4.1066507,130.73,130.72,11.77]
[1725620566046,4.1066507,130.73,130.71,0.05401572]
[1725620566047,3.8255,130.72,130.71,0.05401572]
[1725620566247,4.1069507,130.72,130.71,0.05401572]
[1725620567253,0.2814507,130.72,130.71,11.82401572]
[1725620567551,0.2814507,130.73,130.71,11.82401572]
[1725620567748,0.2814507,130.72,130.71,0.05401572]
[1725620568054,3.8253,130.73,130.71,11.82401572]
[1725620568249,0.2814507,130.72,130.71,11.82401572]
[1725620571055,4.1069507,130.72,130.71,11.82401572]
[1725620571256,4.1069507,130.72,130.71,0.05401572]
[1725620573156,4.10695272,130.72,130.71,0.05401572]
[1725620574855,4.10695272,130.72,130.71,11.82401572]
[1725620575053,0.05150847,130.74,130.71,11.82401572]
[1725620575357,0.05150847,130.74,130.73,11.77]
[1725620575754,3.87640847,130.74,130.73,11.77]
[1725620575953,4.15785761,130.74,130.73,11.77]
[1725620576956,3.87640847,130.74,130.73,11.77]
[1725620577156,4.15784998,130.74,130.73,11.77]
[1725620577756,4.15784998,130.74,130.72,11.77]
[1725620577757,3.8252,130.73,130.72,11.77]
[1725620577954,4.10664151,130.73,130.72,11.77]
[1725620578155,0.28144151,130.73,130.72,11.77]
[1725620578658,3.87650847,130.74,130.72,11.77]
[1725620579059,3.87650847,130.74,130.72,15.5955]
[1725620579554,0.28143314,130.73,130.72,11.77]
[1725620579760,0.05150847,130.74,130.72,11.77]
[1725620580454,3.8254,130.73,130.72,11.77]
[1725620580659,4.10683132,130.73,130.72,11.77]
[1725620581053,4.10683136,130.73,130.72,11.77]
[1725620582060,3.87660847,130.74,130.72,11.77]
[1725620582457,3.87660847,130.74,130.73,11.77]
[1725620582655,4.15801168,130.74,130.73,11.77]
[1725620584960,3.87660847,130.74,130.73,11.77]
[1725620585155,4.15800983,130.74,130.73,11.77]
[1725620587464,3.87660847,130.74,130.73,11.77]
[1725620587672,0.05150847,130.74,130.73,11.77]
[1725620588165,0.05150847,130.74,130.73,15.5952]
[1725620591369,0.05150847,130.74,130.73,11.77]
[1725620592362,3.87640847,130.74,130.73,11.77]
[1725620592762,0.05150847,130.74,130.71,0.05401572]
[1725620593166,0.05150847,130.74,130.72,11.77]
[1725620594067,0.05150847,130.74,130.71,0.05401572]
[1725620594267,3.8255,130.72,130.71,0.05401572]
[1725620596365,3.8255,130.72,130.65,11.77]
[1725620596366,12.05142158,130.72,130.65,11.77]
[1725620596572,0.28142158,130.71,130.65,11.77]
[1725620596876,3.8268,130.68,130.65,11.77]
[1725620597675,3.8268,130.68,130.65,11.8273303]
[1725620598875,3.827,130.67,130.65,11.8273303]
[1725620599078,0.05407224,130.68,130.66,15.5972]
[1725620599266,0.05407224,130.68,130.66,11.77]
[1725620599969,3.88077224,130.68,130.66,11.77]
[1725620600475,3.827,130.67,130.66,11.77]
[1725620600669,0.05407224,130.68,130.66,11.77]
[1725620602471,3.88087224,130.68,130.66,11.77]
[1725620603773,0.05407224,130.68,130.65,0.0573303]
[1725620604274,3.8272,130.66,130.65,0.0573303]
[1725620606070,3.8271,130.67,130.65,0.0573303]
[1725620606278,0.05407224,130.68,130.66,11.77]
[1725620606703,3.8259,130.71,130.68,3.8265]
[1725620606869,3.8259,130.71,130.7,11.77]
[1725620607276,3.8262,130.7,130.68,11.77]
[1725620607573,3.8262,130.7,130.63,1.3951]
[1725620607779,3.8266,130.69,130.68,0.05476422]
[1725620608075,3.8266,130.69,130.67,0.05487095]
[1725620608668,3.8267,130.68,130.67,0.05487095]
[1725620630184,15.5867,130.68,130.67,0.05487095]
[1725620630383,3.8267,130.68,130.67,0.05487095]
[1725620630989,0.05618465,130.7,130.67,11.81487095]
[1725620631190,0.05618465,130.7,130.67,0.05487095]
[1725620632485,11.81618465,130.7,130.67,0.05487095]
[1725620632797,11.76,130.68,130.67,0.05487095]
[1725620633391,15.5867,130.68,130.67,0.05487095]
[1725620634290,3.8267,130.68,130.67,0.05487095]
[1725620635995,3.8267,130.68,130.61,81.75007782]
[1725620635996,3.8275,130.66,130.61,3.8287]
[1725620636190,3.8275,130.66,130.6,29.4]
[1725620636191,29.4,130.67,130.6,29.4]
[1725620636394,0.28157434,130.66,130.6,29.4]
[1725620636595,3.8277,130.65,130.6,33.2288]
[1725620636899,3.86336443,130.64,130.6,29.4]
[1725620637101,3.86336443,130.64,130.61,0.0527846]
[1725620638395,3.86336443,130.64,130.61,3.8814846]
[1725620643207,7.69126443,130.64,130.61,3.8814846]
[1725620643415,3.8279,130.64,130.61,3.8814846]
[1725620643917,7.60307081,130.64,130.61,3.8814846]
[1725620644514,3.8276,130.65,130.62,3.8284]
[1725620644820,0.05743811,130.64,130.61,0.0527846]
[1725620645321,0.05743811,130.64,130.61,3.8812846]
[1725620646724,0.05743811,130.64,130.62,3.8284]
[1725620648015,0.05743811,130.64,130.63,3.8281]
[1725620649618,0.05743811,130.64,130.62,3.8283]
[1725620653224,3.88523811,130.64,130.62,3.8283]
[1725620653928,3.8284,130.62,130.61,0.0527846]
[1725620656026,15.5984,130.62,130.61,0.0527846]
[1725620659433,11.77,130.62,130.55,1.3282]
[1725620659727,11.77,130.59,130.55,1.3282]
[1725620660429,3.8301,130.57,130.55,1.3282]
[1725620660635,3.8301,130.57,130.56,0.05202326]
[1725620673045,15.6001,130.57,130.56,0.05202326]
[1725620674537,12.05173871,130.57,130.49,1.4101]
[1725620674746,3.92406077,130.58,130.49,1.4101]
[1725620674747,11.77,130.54,130.49,1.4101]
[1725620675049,3.8312,130.53,130.49,1.4101]
[1725620675541,7.71890187,130.53,130.5,0.05902291]
[1725620675947,7.71890187,130.53,130.5,11.82902291]
[1725620676142,7.77009656,130.53,130.5,11.82902291]
[1725620676537,3.93889656,130.53,130.5,0.05902291]
[1725620676844,3.8316,130.51,130.5,0.05902291]
[1725620678246,15.6016,130.51,130.5,0.05902291]
[1725620679039,3.8321,130.5,130.45,3.8332]
[1725620679252,15.6021,130.5,130.45,3.8332]
[1725620679951,15.6017,130.51,130.45,11.77]
[1725620680338,0.05637292,130.49,130.45,11.77]
[1725620680544,0.05637292,130.49,130.46,3.8331]
[1725620685151,0.05637292,130.49,130.47,3.8327]
[1725620691860,0.05637292,130.49,130.45,11.77]
[1725620692252,0.05637292,130.49,130.44,15.7868]
[1725620693156,0.05637292,130.49,130.47,3.8328]
[1725620694360,0.05637292,130.49,130.48,3.8325]
[1725620695063,0.05637292,130.49,130.47,3.8327]
[1725620695461,0.05637292,130.49,130.45,11.77]
[1725620696161,0.05637292,130.49,130.47,11.77]
[1725620696360,0.05637292,130.49,130.48,3.8325]
[1725620696556,0.05637292,130.49,130.48,15.6025]
[1725620696758,3.8315,130.52,130.48,11.77]
[1725620696963,3.8306,130.55,130.5,11.77]
[1725620697158,11.77,130.55,130.5,11.77]
[1725620697363,15.52008741,130.55,130.5,11.77]
[1725620697660,15.601,130.54,130.51,3.8315]
[1725620698960,15.601,130.54,130.51,3.88028174]
[1725620699157,15.6011,130.53,130.51,0.04878174]
[1725620699953,3.87036553,130.52,130.51,0.04878174]
[1725620700461,15.6014,130.52,130.51,0.04878174]
[1725620700864,11.77,130.49,130.44,74.28760939]
[1725620701059,11.77,130.49,130.46,3.8329]
[1725620701364,11.77,130.49,130.44,74.28760939]
[1725620702068,0.05629015,130.48,130.46,3.8329]
[1725620704162,0.05629015,130.48,130.46,3.89173501]
[1725620705373,15.6028,130.47,130.46,0.05883501]
[1725620706570,15.65899015,130.48,130.46,0.05883501]
[1725620707266,0.05629015,130.48,130.46,11.82883501]
[1725620707470,3.77261648,130.53,130.47,11.77]
[1725620707664,3.77261648,130.53,130.46,0.05883501]
[1725620707665,11.77,130.54,130.49,11.77]
[1725620707871,7.67704348,130.54,130.49,11.77]
[1725620708069,7.67704348,130.54,130.5,13.1929]
[1725620708565,7.67704348,130.54,130.51,3.8316]
[1725620708775,0.04970598,130.53,130.51,11.82312728]
[1725620708985,11.77,130.52,130.51,0.05312728]
[1725620709266,7.69144854,130.52,130.51,0.05312728]
[1725620709467,19.46144854,130.52,130.51,0.05312728]
[1725620710466,11.77,130.49,130.46,1.3245]
[1725620710673,11.77,130.48,130.46,1.3245]
[1725620711476,11.82640287,130.48,130.46,1.3245]
[1725620711776,11.82640287,130.48,130.44,5.1394]
[1725620711979,11.82640287,130.48,130.44,1.3059]
[1725620712784,0.05640287,130.48,130.45,11.77]
[1725620713275,0.05640287,130.48,130.46,3.8329]
[1725620714077,0.05640287,130.48,130.45,3.8334]
[1725620714276,11.82640287,130.48,130.44,1.3059]
[1725620714578,3.8331,130.47,130.44,1.3059]
[1725620718572,3.8331,130.47,130.44,5.1396]
[1725620720078,3.8331,130.47,130.44,3.8337]
[1725620720977,3.8331,130.46,130.43,5.1583]
[1725620721668,3.8331,130.46,130.43,5.21060234]
[1725620722172,3.8329,130.47,130.44,3.8337]
[1725620723971,3.8329,130.47,130.43,1.37680234]
[1725620723972,3.8329,130.47,130.43,13.14680234]
[1725620724277,3.8329,130.47,130.45,3.8334]
[1725620724673,3.8329,130.47,130.43,13.14680234]
[1725620724674,3.8329,130.47,130.44,3.8336]
[1725620726182,3.8334,130.46,130.43,5.21070234]
[1725620727275,11.77,130.47,130.43,5.21070234]
[1725620727485,15.6035,130.45,130.43,1.37680234]
[1725620727670,15.65011927,130.45,130.43,1.37680234]
[1725620727876,15.70703607,130.45,130.43,0.05230234]
[1725620728279,15.6037,130.44,130.43,0.05230234]
[1725620730681,3.93703607,130.45,130.43,0.05230234]
[1725620730682,7.77053607,130.45,130.43,0.05230234]
[1725620731186,19.54053607,130.45,130.43,0.05230234]
[1725620731389,15.6037,130.44,130.43,0.05230234]
[1725620732277,12.05203099,130.44,130.36,1.3677]
[1725620732481,0.28206073,130.43,130.36,1.3677]
[1725620732680,11.77,130.4,130.36,1.3677]
[1725620732876,15.51911944,130.4,130.37,3.8356]
[1725620733082,15.51911944,130.4,130.36,1.3677]
[1725620733478,15.51911944,130.4,130.35,2.7572]
[1725620733681,0.04956893,130.39,130.36,3.8359]
[1725620733881,0.04956893,130.39,130.35,14.5272]
[1725620734279,0.04956893,130.39,130.36,3.8358]
[1725620735083,3.88476893,130.39,130.36,3.8358]
[1725620735281,0.04956893,130.39,130.37,3.8356]
[1725620735482,0.04956893,130.39,130.35,14.5272]
[1725620736191,0.04956893,130.39,130.36,3.8359]
[1725620736491,0.04956893,130.39,130.36,3.89262803]
[1725620737788,0.04956893,130.39,130.36,0.05672803]
[1725620738377,11.77,130.38,130.36,0.05672803]
[1725620738889,0.04956893,130.39,130.36,0.05672803]
[1725620739590,0.04956893,130.39,130.36,3.89262803]
[1725620741384,3.88486893,130.39,130.36,3.89262803]
[1725620743478,0.04956893,130.39,130.37,3.8357]
[1725620747391,15.65476893,130.39,130.36,3.89272803]
[1725620750904,3.8356,130.38,130.36,0.05672803]
[1725620751396,11.77,130.38,130.36,0.05672803]
[1725620751586,0.04956893,130.39,130.36,0.05672803]
[1725620751587,11.77,130.37,130.36,0.05672803]
[1725620751992,15.6058,130.37,130.36,0.05672803]
[1725620753398,3.8368,130.34,130.31,5.1926]
[1725620753598,15.6068,130.34,130.31,5.1926]
[1725620753894,3.8371,130.33,130.31,1.3552]
[1725620754100,15.6071,130.33,130.27,11.77]
[1725620754504,0.04987299,130.31,130.29,3.88742408]
[1725620755804,0.04987299,130.31,130.3,3.8378]
[1725620757194,0.04987299,130.31,130.29,3.88752408]
[1725620757397,0.04987299,130.31,130.29,0.04952408]
[1725620757599,11.77,130.3,130.29,0.04952408]
[1725620757899,15.6078,130.3,130.29,0.04952408]
[1725620760497,15.6092,130.26,130.22,1.3176]
[1725620760709,11.77,130.25,130.22,1.3176]
[1725620760905,3.8392,130.26,130.22,5.1576]
[1725620761200,15.6092,130.26,130.22,5.1576]
[1725620761507,11.77,130.29,130.24,11.77]
[1725620761712,0.05745668,130.25,130.24,11.77]
[1725620762006,1.0,130.3,130.24,11.77]
[1725620762207,1.0,130.3,130.25,15.6093]
[1725620762208,0.05390167,130.26,130.25,15.6093]
[1725620762404,0.05390167,130.26,130.22,1.3176]
[1725620762609,1.0,130.3,130.25,11.77]
[1725620762900,11.77,130.36,130.29,11.77]
[1725620763106,11.77,130.37,130.33,3.8367]
[1725620763302,0.04992492,130.34,130.33,11.77]
[1725620763806,0.04992492,130.34,130.33,3.8369]
[1725620764502,0.04992492,130.34,130.33,15.6069]
[1725620764715,1.3569,130.44,130.33,11.77]
[1725620765000,1.3569,130.44,130.31,4.098]
[1725620765001,3.835,130.4,130.35,11.77]
[1725620765518,104.79178917,130.41,130.37,11.77]
[1725620766004,0.05263325,130.4,130.36,3.836]
[1725620766207,3.88763325,130.4,130.38,0.05335198]
[1725620766516,0.05708595,130.39,130.36,3.836]
[1725620766805,3.89248595,130.39,130.34,3.8366]
[1725620767006,29.53708595,130.39,130.31,33.578]
[1725620767515,29.48,130.39,130.32,3.837]
[1725620767708,0.04980787,130.36,130.32,3.837]
[1725620768012,0.04980787,130.36,130.33,3.8367]
[1725620768712,0.04980787,130.36,130.33,3.89117698]
[1725620768900,0.04980787,130.36,130.33,0.05447698]
[1725620770903,3.8366,130.35,130.33,0.05447698]
[1725620771406,7.69751721,130.34,130.33,0.05447698]
[1725620771710,29.52980787,130.36,130.33,0.05447698]
[1725620771908,3.8366,130.35,130.33,0.05447698]
[1725620774310,7.63774783,130.34,130.33,0.05447698]
[1725620782010,37.11774783,130.34,130.33,0.05447698]
[1725620782714,3.8378,130.31,130.28,3.8382]
[1725620783417,3.8374,130.32,130.27,3.8385]
[1725620783607,3.8374,130.32,130.25,30.8513]
[1725620783918,0.05209704,130.31,130.27,29.48]
[1725620784917,3.88959704,130.31,130.27,29.48]
[1725620785816,0.05209704,130.31,130.29,3.8381]
[1725620787621,0.05209704,130.31,130.3,3.8378]
[1725620789916,0.05209704,130.31,130.27,11.81]
[1725620790314,3.88979704,130.31,130.28,3.8382]
[1725620791619,3.88979704,130.31,130.29,3.8381]
[1725620793019,3.88979704,130.31,130.28,3.8383]
[1725620794032,3.8378,130.3,130.28,3.8383]
[1725620794726,3.8378,130.3,130.28,3.89264364]
[1725620795117,3.8381,130.29,130.28,0.05434364]
[1725620797225,3.838,130.3,130.28,0.05434364]
[1725620798124,3.8381,130.29,130.28,0.05434364]
[1725620799318,3.838,130.3,130.28,3.89274364]
[1725620800324,3.838,130.3,130.28,0.05434364]
[1725620801736,15.648,130.3,130.28,0.05434364]
[1725620803026,3.8381,130.29,130.28,0.05434364]
[1725620804223,15.648,130.3,130.28,0.05434364]
[1725620804731,3.88969704,130.31,130.28,0.05434364]
[1725620805225,0.05209704,130.31,130.29,3.838]
[1725620806638,3.88989704,130.31,130.28,3.89264364]
[1725620807230,0.05209704,130.31,130.29,3.8381]
[1725620807431,0.05209704,130.31,130.28,11.86434364]
[1725620807729,0.05209704,130.31,130.3,15.6478]
[1725620808635,0.05209704,130.31,130.29,3.838]
[1725620809429,0.05209704,130.31,130.3,3.8378]
[1725620815434,0.05209704,130.31,130.28,11.86434364]
[1725620815435,3.88979704,130.31,130.28,0.05434364]
[1725620815628,0.05209704,130.31,130.28,0.05434364]
[1725620816032,0.05209704,130.31,130.3,3.8378]
[1725620816638,0.05209704,130.31,130.29,15.648]
[1725620816940,0.05209704,130.31,130.29,11.81]
[1725620817338,0.05209704,130.31,130.3,3.8378]